bitfinex/quotes_SOLUSD_20250829
["timestamp","ask_amount","ask_price","bid_price","bid_amount"]
[1756482900990,0.68,207.09,207.01,25.21660733]
[1756482901185,0.68,207.09,207.02,25.21660733]
[1756482901385,0.68,207.13,207.06,25.21660733]
[1756482901585,25.27660733,207.12,207.06,25.21660733]
[1756482902088,13.65559401,207.12,207.06,25.21660733]
[1756482902284,0.06,207.12,207.07,25.21660733]
[1756482902510,0.06,207.12,207.09,25.21660733]
[1756482902689,0.06,207.12,207.07,25.21660733]
[1756482902879,0.06,207.12,207.05,30.04635859]
[1756482902880,25.21660733,207.11,207.05,30.04635859]
[1756482903083,25.21660733,207.09,207.03,26.0]
[1756482903311,13.59559401,207.05,206.99,26.0]
[1756482903516,38.81220134,207.05,206.99,51.21660733]
[1756482903715,13.59559401,207.05,207.0,25.21660733]
[1756482903949,13.59559401,207.1,207.04,25.21660733]
[1756482904126,13.59559401,207.11,207.06,25.21660733]
[1756482904289,0.68,207.1,207.05,25.21660733]
[1756482905120,0.68,207.09,207.05,25.21660733]
[1756482905726,0.06,207.12,206.98,0.07]
[1756482905727,0.74,207.12,207.04,0.03]
[1756482905926,13.59559401,207.11,207.07,25.21660733]
[1756482906212,25.89660733,207.1,207.04,0.03]
[1756482906434,25.21660733,207.05,207.04,0.03]
[1756482906586,38.81220134,207.05,207.04,0.03]
[1756482906790,39.49220134,207.05,207.04,0.03]
[1756482907016,13.59559401,207.04,207.01,0.03]
[1756482907186,38.81220134,207.02,207.01,0.03]
[1756482907382,38.81220134,207.02,206.9,4.83325277]
[1756482907609,25.21660733,206.97,206.91,25.21660733]
[1756482907823,13.59559401,206.97,206.92,25.21660733]
[1756482908219,14.27559401,206.97,206.92,25.21660733]
[1756482908519,25.21660733,206.96,206.9,30.0498601]
[1756482908700,25.21660733,206.94,206.83,0.13]
[1756482908897,25.21660733,206.94,206.81,0.48353561]
[1756482908898,18.42784098,206.95,206.81,12.08782422]
[1756482909093,25.21660733,206.93,206.87,25.21660733]
[1756482909296,14.27559401,206.93,206.87,25.21660733]
[1756482909796,39.49220134,206.93,206.87,25.21660733]
[1756482910003,25.21660733,206.92,206.86,25.21660733]
[1756482910199,14.27559401,206.93,206.86,25.21660733]
[1756482910404,0.68,206.95,206.89,25.21660733]
[1756482910607,13.59559401,206.89,206.8,4.83558994]
[1756482910820,25.21660733,206.88,206.82,25.21660733]
[1756482911123,38.81220134,206.87,206.81,25.21660733]
[1756482911330,25.21660733,206.84,206.75,2.65281639]
[1756482911498,25.21660733,206.78,206.75,2.52281639]
[1756482911697,25.21660733,206.78,206.72,0.03]
[1756482911698,38.81220134,206.84,206.77,25.21660733]
[1756482911921,0.68,206.85,206.76,26.0]
[1756482911922,25.89660733,206.85,206.76,26.0]
[1756482912126,25.21660733,206.81,206.73,4.8372273]
[1756482912435,25.89660733,206.81,206.75,25.21660733]
[1756482912605,25.89660733,206.81,206.74,25.21660733]
[1756482912606,38.81220134,206.8,206.74,25.21660733]
[1756482912911,25.21660733,206.78,206.72,25.24660733]
[1756482913107,25.21660733,206.77,206.72,25.24660733]
[1756482913309,25.89660733,206.77,206.72,4.86736996]
[1756482913514,0.68,206.77,206.72,30.08397729]
[1756482914122,0.68,206.77,206.72,4.86736996]
[1756482914123,25.89660733,206.77,206.72,4.86736996]
[1756482914501,13.59559401,206.78,206.73,25.21660733]
[1756482914704,25.21660733,206.75,206.72,0.03]
[1756482914905,25.21660733,206.74,206.72,0.03]
[1756482915127,0.68,206.77,206.72,0.03]
[1756482915333,25.89660733,206.77,206.72,0.03]
[1756482915916,0.68,206.77,206.72,25.24660733]
[1756482916443,13.59559401,206.82,206.75,25.21660733]
[1756482916606,25.21660733,206.87,206.81,25.21660733]
[1756482916807,25.21660733,206.87,206.75,26.13]
[1756482916808,25.21660733,206.84,206.75,26.0]
[1756482917033,39.49220134,206.83,206.77,30.05284347]
[1756482917341,25.21660733,206.81,206.76,25.21660733]
[1756482917649,0.68,206.83,206.78,25.21660733]
[1756482917820,0.68,206.83,206.75,42.928515]
[1756482918141,0.68,206.83,206.79,25.21660733]
[1756482918347,0.14216157,206.89,206.8,25.21660733]
[1756482918660,13.59559401,206.86,206.83,25.21660733]
[1756482918812,0.68,206.85,206.82,25.21660733]
[1756482919014,0.68,206.84,206.8,30.05208964]
[1756482919319,0.68,206.84,206.79,25.21660733]
[1756482919621,13.59559401,206.87,206.81,25.21660733]
[1756482919831,13.59559401,206.87,206.82,25.21660733]
[1756482920028,0.68,206.86,206.83,25.21660733]
[1756482920241,0.68,206.87,206.83,25.21660733]
[1756482920436,0.68,206.87,206.84,25.21660733]
[1756482920735,25.89660733,206.91,206.85,25.21660733]
[1756482920914,0.68,206.91,206.88,4.83372003]
[1756482921343,13.59559401,206.92,206.87,25.21660733]
[1756482921643,0.68,206.91,206.87,30.05049606]
[1756482921943,13.59559401,206.87,206.75,25.21660733]
[1756482922119,0.14216157,206.89,206.75,25.21660733]
[1756482922120,13.59559401,206.84,206.75,25.21660733]
[1756482922325,25.21660733,206.81,206.75,25.21660733]
[1756482922545,0.68,206.83,206.75,25.21660733]
[1756482922765,25.21660733,206.81,206.75,25.21660733]
[1756482922936,14.27559401,206.83,206.72,0.03]
[1756482922937,38.81220134,206.82,206.76,25.21660733]
[1756482923955,25.21660733,206.81,206.75,25.21660733]
[1756482924139,38.81220134,206.82,206.76,25.21660733]
[1756482924647,25.21660733,206.81,206.75,25.21660733]
[1756482924954,13.59559401,206.9,206.81,4.83535612]
[1756482925253,13.59559401,206.88,206.83,25.21660733]
[1756482925441,0.68,206.91,206.81,16.92374642]
[1756482925442,0.68,206.91,206.84,25.21660733]
[1756482925648,25.21660733,206.9,206.84,25.21660733]
[1756482925952,25.21660733,206.89,206.83,25.21660733]
[1756482926149,25.21660733,206.89,206.84,25.21660733]
[1756482926344,13.59559401,206.9,206.84,25.21660733]
[1756482926548,38.81220134,206.89,206.83,25.21660733]
[1756482926946,38.81220134,206.89,206.84,4.8346548]
[1756482927448,13.59559401,206.89,206.84,30.05126213]
[1756482927828,13.59559401,206.89,206.85,25.21660733]
[1756482928161,0.68,206.92,206.84,25.21660733]
[1756482928366,25.21660733,206.89,206.8,4.83558994]
[1756482928561,38.81220134,206.87,206.81,25.21660733]
[1756482928736,25.21660733,206.82,206.72,0.03]
[1756482928935,25.21660733,206.83,206.77,25.21660733]
[1756482929149,13.59559401,206.82,206.77,25.21660733]
[1756482929337,25.89660733,206.83,206.75,25.21660733]
[1756482929338,25.89660733,206.81,206.75,25.21660733]
[1756482929536,38.81220134,206.8,206.74,25.21660733]
[1756482929759,13.59559401,206.8,206.75,25.21660733]
[1756482930649,38.81220134,206.8,206.74,25.21660733]
[1756482930864,13.59559401,206.78,206.72,0.03]
[1756482931064,38.81220134,206.73,206.72,0.03]
[1756482931433,39.48220134,206.73,206.72,0.03]
[1756482931633,26.0,206.85,206.72,0.03]
[1756482931939,25.21660733,206.73,206.72,0.03]
[1756482932435,39.48220134,206.73,206.67,0.03]
[1756482932658,38.81220134,206.7,206.67,0.03]
[1756482932859,14.26559401,206.7,206.67,0.03]
[1756482933160,39.48220134,206.7,206.67,0.03]
[1756482933661,25.21660733,206.7,206.67,0.03]
[1756482933856,0.67,206.74,206.67,0.03]
[1756482934157,25.21660733,206.7,206.67,0.03]
[1756482935262,39.48220134,206.7,206.67,0.03]
[1756482936356,39.62436291,206.7,206.67,0.03]
[1756482936670,14.26559401,206.7,206.67,0.03]
[1756482936857,39.48220134,206.7,206.67,0.03]
[1756482938066,39.62436291,206.7,206.67,0.03]
[1756482938572,13.73775558,206.69,206.67,0.03]
[1756482938747,38.95436291,206.68,206.67,0.03]
[1756482939064,39.62436291,206.68,206.67,0.03]
[1756482941248,44.46276043,206.68,206.67,0.03]
[1756482941439,39.62436291,206.68,206.67,0.03]
[1756482941651,44.46276043,206.68,206.67,0.03]
[1756482942075,14.40775558,206.68,206.67,0.03]
[1756482942371,39.62436291,206.68,206.67,0.03]
[1756482942670,13.73775558,206.67,206.56,4.84120836]
[1756482942873,25.21660733,206.57,206.55,4.94141153]
[1756482943073,25.21660733,206.58,206.55,4.94141153]
[1756482943370,0.67,206.68,206.57,25.21660733]
[1756482943586,0.67,206.73,206.61,26.0]
[1756482943885,25.21660733,206.74,206.68,25.21660733]
[1756482944172,0.67,206.81,206.68,25.43660733]
[1756482944372,25.21660733,206.74,206.68,25.43660733]
[1756482944572,25.21660733,206.74,206.67,0.03]
[1756482944573,25.21660733,206.7,206.67,0.03]
[1756482944762,25.21660733,206.71,206.67,0.03]
[1756482945361,25.21660733,206.73,206.67,42.18181804]
[1756482945561,25.21660733,206.71,206.67,4.86863163]
[1756482946080,38.81220134,206.68,206.67,0.03]
[1756482946264,39.48220134,206.68,206.67,0.03]
[1756482947078,39.62436291,206.68,206.67,0.03]
[1756482947377,44.46276043,206.68,206.67,0.03]
[1756482947582,44.46276043,206.68,206.64,0.03]
[1756482947583,38.95436291,206.65,206.64,0.03]
[1756482947958,39.62436291,206.65,206.64,0.03]
[1756482948358,13.59559401,206.65,206.64,0.03]
[1756482948688,0.14216157,206.69,206.64,0.03]
[1756482948863,25.21660733,206.68,206.64,0.03]
[1756482949186,13.59559401,206.68,206.64,0.03]
[1756482949682,0.67,206.77,206.67,25.21660733]
[1756482950000,4.89561855,206.8,206.69,25.21660733]
[1756482950001,0.06,206.8,206.69,25.21660733]
[1756482950169,25.21660733,206.75,206.69,25.21660733]
[1756482950349,25.21660733,206.73,206.67,25.46660733]
[1756482950545,25.21660733,206.74,206.68,25.21660733]
[1756482950962,0.67,206.77,206.68,25.21660733]
[1756482951158,14.26559401,206.77,206.69,25.21660733]
[1756482951358,14.26559401,206.77,206.67,0.25]
[1756482951359,25.21660733,206.73,206.67,51.21660733]
[1756482951567,0.06,206.8,206.72,25.21660733]
[1756482951777,0.06,206.8,206.68,43.18439132]
[1756482951778,0.06,206.8,206.78,25.21660733]
[1756482952277,25.88660733,206.79,206.64,0.03]
[1756482952468,13.59559401,206.66,206.64,0.03]
[1756482952654,38.81220134,206.66,206.64,0.03]
[1756482952862,13.59559401,206.66,206.64,0.03]
[1756482953382,38.81220134,206.65,206.64,0.03]
[1756482953557,39.48220134,206.65,206.64,0.03]
[1756482953875,13.59559401,206.65,206.64,0.03]
[1756482954058,38.81220134,206.65,206.64,0.03]
[1756482954881,0.67,206.72,206.64,0.03]
[1756482955065,25.21660733,206.68,206.64,0.03]
[1756482955266,13.59559401,206.66,206.64,0.03]
[1756482955467,25.21660733,206.66,206.64,0.03]
[1756482956289,25.21660733,206.7,206.64,25.49660733]
[1756482956578,13.59559401,206.71,206.66,25.21660733]
[1756482956771,25.21660733,206.72,206.66,25.21660733]
[1756482956967,25.21660733,206.75,206.69,25.21660733]
[1756482957273,0.06,206.8,206.71,25.21660733]
[1756482957576,25.21660733,206.77,206.72,4.8374613]
[1756482957787,13.59559401,206.76,206.72,4.8374613]
[1756482957965,38.81220134,206.76,206.72,4.8374613]
[1756482958364,25.21660733,206.74,206.68,25.21660733]
[1756482958574,25.88660733,206.75,206.69,25.21660733]
[1756482958862,12.73775558,206.69,206.64,0.03]
[1756482959074,25.21660733,206.65,206.64,0.03]
[1756482959474,25.88660733,206.65,206.64,0.03]
[1756482960381,30.72570725,206.65,206.64,0.03]
[1756482960566,25.88660733,206.65,206.64,0.03]
[1756482960898,44.32130126,206.65,206.64,0.03]
[1756482961186,14.40775558,206.65,206.64,0.03]
[1756482961362,44.46346283,206.65,206.64,0.03]
[1756482961559,44.46346283,206.65,206.55,0.1]
[1756482961560,18.43516232,206.63,206.55,0.1]
[1756482961792,13.73775558,206.62,206.55,0.1]
[1756482962088,25.21660733,206.56,206.55,0.1]
[1756482962467,13.59559401,206.61,206.55,0.1]
[1756482962662,25.21660733,206.56,206.55,0.1]
[1756482963667,13.59559401,206.62,206.55,0.1]
[1756482963868,25.21660733,206.56,206.55,0.1]
[1756482964473,0.68,206.67,206.55,42.54165694]
[1756482964676,25.21660733,206.63,206.57,25.21660733]
[1756482964903,25.21660733,206.62,206.59,0.03]
[1756482965061,25.21660733,206.61,206.59,0.03]
[1756482965265,0.74,206.71,206.6,0.28]
[1756482965479,25.21660733,206.66,206.6,25.49660733]
[1756482965686,25.21660733,206.66,206.61,4.84003678]
[1756482966109,25.21660733,206.65,206.61,4.84003678]
[1756482966390,25.21660733,206.64,206.61,4.84003678]
[1756482966769,25.21660733,206.65,206.61,4.84003678]
[1756482967165,25.21660733,206.65,206.6,4.84027105]
[1756482967391,25.21660733,206.61,206.59,0.03]
[1756482967588,13.59559401,206.67,206.59,0.03]
[1756482967589,25.21660733,206.63,206.59,4.87049012]
[1756482967802,25.21660733,206.64,206.59,4.87049012]
[1756482968495,25.89660733,206.64,206.59,4.87049012]
[1756482968669,25.21660733,206.64,206.59,4.87049012]
[1756482968869,0.14216157,206.7,206.61,25.21660733]
[1756482968870,0.68,206.7,206.61,25.21660733]
[1756482969094,0.06,206.71,206.65,25.21660733]
[1756482969280,0.06,206.71,206.69,4.83816343]
[1756482969689,0.06,206.71,206.66,25.21660733]
[1756482970186,25.21660733,206.69,206.65,4.83909992]
[1756482970383,25.21660733,206.67,206.6,4.84027105]
[1756482970696,25.21660733,206.65,206.6,4.84027105]
[1756482971005,0.68,206.69,206.62,25.21660733]
[1756482971181,38.81220134,206.69,206.63,30.05612071]
[1756482971693,25.27660733,206.71,206.65,25.21660733]
[1756482971889,25.27660733,206.71,206.63,4.83951338]
[1756482971890,25.95660733,206.71,206.63,4.83951338]
[1756482972084,13.59559401,206.69,206.59,0.03]
[1756482972388,25.21660733,206.63,206.59,0.03]
[1756482972592,25.21660733,206.63,206.59,4.87040299]
[1756482972777,13.59559401,206.67,206.61,25.21660733]
[1756482972982,38.81220134,206.67,206.61,25.21660733]
[1756482973194,13.59559401,206.68,206.61,25.21660733]
[1756482973387,25.21660733,206.66,206.6,25.21660733]
[1756482973689,13.59559401,206.6,206.59,0.03]
[1756482973991,38.81220134,206.6,206.59,0.03]
[1756482974299,39.49220134,206.6,206.59,0.03]
[1756482975493,19.11586506,206.6,206.59,0.03]
[1756482975683,44.33247239,206.6,206.59,0.03]
[1756482976088,39.49220134,206.6,206.59,0.03]
[1756482976289,0.14216157,206.58,206.55,0.1]
[1756482976576,38.81220134,206.56,206.55,0.1]
[1756482977006,39.49220134,206.56,206.55,0.1]
[1756482977186,39.63436291,206.56,206.55,0.1]
[1756482978109,44.47557127,206.56,206.55,0.1]
[1756482978414,13.73775558,206.55,206.4,12.11226858]
[1756482978594,13.73775558,206.55,206.36,0.31]
[1756482978595,25.21660733,206.45,206.36,0.31]
[1756482978904,25.21660733,206.45,206.4,25.21660733]
[1756482979104,25.21660733,206.45,206.38,26.0]
[1756482979105,0.68,206.57,206.44,25.21660733]
[1756482979411,18.4398286,206.44,206.37,2.52760712]
[1756482979587,0.68,206.43,206.34,25.21660733]
[1756482979792,25.21660733,206.42,206.35,25.21660733]
[1756482980107,25.21660733,206.42,206.34,0.31]
[1756482980108,25.21660733,206.4,206.34,25.21660733]
[1756482980577,25.21660733,206.37,206.32,0.31]
[1756482980776,25.21660733,206.36,206.3,30.06391707]
[1756482981000,25.21660733,206.35,206.3,4.84730974]
[1756482981220,25.21660733,206.37,206.31,25.52660733]
[1756482981387,25.21660733,206.36,206.32,4.84683986]
[1756482981586,25.21660733,206.35,206.32,4.84683986]
[1756482981787,0.68,206.45,206.34,25.21660733]
[1756482981985,13.59559401,206.44,206.37,25.21660733]
[1756482982201,38.81220134,206.44,206.35,0.31]
[1756482982396,38.81220134,206.44,206.37,25.21660733]
[1756482982833,13.59559401,206.46,206.37,25.21660733]
[1756482983012,13.59559401,206.46,206.41,25.21660733]
[1756482983212,13.59559401,206.46,206.42,25.21660733]
[1756482983439,13.59559401,206.46,206.37,0.31]
[1756482983440,12.10069739,206.6,206.43,30.06086446]
[1756482983731,4.84050534,206.59,206.45,25.21660733]
[1756482983941,25.21660733,206.5,206.44,25.21660733]
[1756482984138,25.21660733,206.45,206.39,25.21660733]
[1756482984307,13.59559401,206.44,206.39,25.21660733]
[1756482984634,0.14216157,206.5,206.43,25.21660733]
[1756482984635,13.59559401,206.46,206.43,25.21660733]
[1756482984814,38.81220134,206.49,206.43,25.21660733]
[1756482985626,13.59559401,206.49,206.44,25.21660733]
[1756482985840,0.68,206.57,206.48,25.21660733]
[1756482986050,0.68,206.57,206.52,25.21660733]
[1756482986219,0.68,206.57,206.53,25.21660733]
[1756482986411,0.06,206.63,206.54,25.21660733]
[1756482986412,25.89660733,206.6,206.54,25.21660733]
[1756482986831,25.21660733,206.59,206.53,25.21660733]
[1756482987035,13.59559401,206.56,206.47,0.31]
[1756482987332,13.59559401,206.54,206.48,25.21660733]
[1756482987518,38.81220134,206.54,206.49,4.84284953]
[1756482987831,0.68,206.53,206.49,4.84284953]
[1756482988215,25.89660733,206.52,206.46,4.84355323]
[1756482988409,38.81220134,206.51,206.46,4.84355323]
[1756482988642,25.89660733,206.5,206.46,4.84355323]
[1756482989133,13.59559401,206.54,206.49,25.21660733]
[1756482989341,13.59559401,206.52,206.48,25.21660733]
[1756482989634,13.59559401,206.52,206.48,4.84295859]
[1756482989824,0.68,206.51,206.47,25.21660733]
[1756482990312,0.68,206.5,206.47,25.21660733]
[1756482990519,13.59559401,206.53,206.48,25.21660733]
[1756482990718,0.71,206.52,206.48,25.21660733]
[1756482991315,13.59559401,206.55,206.45,17.26325744]
[1756482991515,0.06,206.66,206.54,25.21660733]
[1756482991828,25.98660733,206.66,206.61,25.21660733]
[1756482992226,25.21660733,206.65,206.59,25.21660733]
[1756482992429,25.21660733,206.6,206.54,25.21660733]
[1756482992622,38.81220134,206.55,206.49,25.21660733]
[1756482992828,25.21660733,206.57,206.51,25.21660733]
[1756482993034,13.59559401,206.56,206.51,25.21660733]
[1756482993346,13.59559401,206.57,206.52,25.21660733]
[1756482993542,14.30559401,206.57,206.52,30.0586036]
[1756482994056,25.21660733,206.58,206.52,30.0586036]
[1756482994057,25.92660733,206.56,206.52,4.84199627]
[1756482994226,0.71,206.55,206.52,4.84199627]
[1756482995134,25.92660733,206.55,206.52,4.84199627]
[1756482995444,14.30559401,206.54,206.44,26.0]
[1756482995653,0.71,206.53,206.44,25.21660733]
[1756482995819,25.21660733,206.5,206.44,25.21660733]
[1756482996145,25.21660733,206.51,206.45,25.21660733]
[1756482996342,13.59559401,206.52,206.45,25.21660733]
[1756482996524,13.59559401,206.52,206.46,25.21660733]
[1756482996725,0.71,206.53,206.47,25.21660733]
[1756482996726,25.92660733,206.53,206.47,25.21660733]
[1756482996936,13.59559401,206.53,206.49,25.21660733]
[1756482997136,25.21660733,206.54,206.48,25.21660733]
[1756482997335,25.21660733,206.53,206.47,25.21660733]
[1756482997662,25.21660733,206.52,206.48,4.84308407]
[1756482998250,13.59559401,206.5,206.43,4.84425713]
[1756482998465,13.59559401,206.5,206.19,132.5]
[1756482998466,25.21660733,206.44,206.4,4.84496124]
[1756482998761,25.21660733,206.43,206.4,4.84496124]
[1756482998935,25.21660733,206.44,206.4,4.84496124]
[1756483000449,0.71,206.46,206.4,16.95736434]
[1756483000623,25.21660733,206.45,206.4,16.95736434]
[1756483000824,25.21660733,206.42,206.39,4.87517546]
[1756483001061,25.21660733,206.4,206.39,0.03]
[1756483001440,13.59559401,206.39,206.27,0.31]
[1756483001639,25.21660733,206.35,206.3,4.84730974]
[1756483001841,0.71,206.34,206.27,25.21660733]
[1756483002148,25.21660733,206.33,206.27,25.21660733]
[1756483002837,0.71,206.4,206.32,25.21660733]
[1756483003032,0.71,206.4,206.36,25.21660733]
[1756483003340,13.59559401,206.42,206.38,25.21660733]
[1756483003661,0.71,206.41,206.34,16.96229523]
[1756483003863,13.59559401,206.4,206.34,4.84637006]
[1756483004358,25.21660733,206.39,206.34,4.84637006]
[1756483004547,0.71,206.39,206.34,30.06297739]
[1756483005065,38.81220134,206.38,206.34,4.84637006]
[1756483005234,38.81220134,206.35,206.31,4.84707479]
[1756483005434,25.92660733,206.34,206.31,4.84707479]
[1756483005631,0.71,206.4,206.33,4.84660495]
[1756483005838,13.59559401,206.38,206.33,4.84660495]
[1756483006042,0.71,206.37,206.33,4.84660495]
[1756483006252,0.71,206.4,206.33,4.84660495]
[1756483006556,13.59559401,206.39,206.34,25.21660733]
[1756483006735,14.30559401,206.39,206.34,25.21660733]
[1756483007057,39.52220134,206.39,206.33,30.06321228]
[1756483007360,25.21660733,206.35,206.3,0.03]
[1756483007850,25.21660733,206.35,206.3,4.87730974]
[1756483007851,25.92660733,206.35,206.3,4.87730974]
[1756483008049,0.71,206.34,206.3,4.87730974]
[1756483008261,0.71,206.42,206.33,25.21660733]
[1756483008428,13.59559401,206.41,206.38,25.21660733]
[1756483008848,13.59559401,206.41,206.36,25.21660733]
[1756483009087,0.71,206.4,206.36,25.21660733]
[1756483009259,13.59559401,206.41,206.37,25.21660733]
[1756483009451,0.71,206.47,206.37,0.34]
[1756483009752,13.59559401,206.46,206.39,25.21660733]
[1756483009942,25.21660733,206.49,206.43,25.21660733]
[1756483010142,25.21660733,206.49,206.44,25.21660733]
[1756483010361,0.06,206.55,206.34,17.44693223]
[1756483010362,0.71,206.48,206.39,25.21660733]
[1756483010531,25.27660733,206.55,206.34,4.84637006]
[1756483010532,25.21660733,206.4,206.34,4.84637006]
[1756483010734,14.30559401,206.39,206.31,30.06348083]
[1756483010972,38.81220134,206.39,206.33,25.21660733]
[1756483011166,38.81220134,206.37,206.31,30.06348083]
[1756483011469,13.59559401,206.38,206.33,25.21660733]
[1756483011833,0.71,206.37,206.3,0.03]
[1756483012057,38.81220134,206.36,206.31,4.84707479]
[1756483012353,25.92660733,206.35,206.3,0.03]
[1756483012559,38.81220134,206.34,206.3,0.03]
[1756483012768,39.52220134,206.34,206.3,4.87726861]
[1756483013268,13.59559401,206.32,206.3,0.03]
[1756483013472,25.21660733,206.31,206.3,0.03]
[1756483013673,39.52220134,206.31,206.3,0.03]
[1756483016247,14.30559401,206.31,206.3,0.03]
[1756483016461,39.52220134,206.31,206.3,0.03]
[1756483017649,44.5114377,206.31,206.3,0.03]
[1756483017966,14.30559401,206.31,206.3,0.03]
[1756483018152,39.52220134,206.31,206.3,0.03]
[1756483019853,13.59559401,206.31,206.3,0.03]
[1756483020052,25.21660733,206.34,206.3,0.03]
[1756483020242,25.21660733,206.38,206.32,25.21660733]
[1756483020560,0.71,206.39,206.3,0.37]
[1756483020561,25.92660733,206.39,206.33,25.21660733]
[1756483020773,25.21660733,206.43,206.37,25.21660733]
[1756483021063,25.21660733,206.44,206.38,25.21660733]
[1756483021262,13.59559401,206.45,206.34,0.34]
[1756483021574,25.21660733,206.37,206.31,25.24660733]
[1756483021761,13.59559401,206.37,206.32,25.21660733]
[1756483022069,0.06,206.39,206.36,25.21660733]
[1756483022248,0.06,206.39,206.38,25.21660733]
[1756483022448,0.06,206.39,206.33,16.96311733]
[1756483022449,0.06,206.39,206.33,17.30311733]
[1756483022657,13.59559401,206.38,206.33,16.96311733]
[1756483022867,13.65559401,206.39,206.33,42.17972466]
[1756483023173,38.87220134,206.39,206.33,42.17972466]
[1756483023851,38.87220134,206.39,206.31,0.03]
[1756483023852,13.59559401,206.34,206.31,0.03]
[1756483024053,38.81220134,206.34,206.31,0.03]
[1756483024249,0.06,206.39,206.33,25.21660733]
[1756483024454,0.06,206.39,206.32,0.34]
[1756483024679,25.21660733,206.33,206.31,0.03]
[1756483024844,13.59559401,206.37,206.31,0.03]
[1756483024845,38.81220134,206.32,206.31,0.03]
[1756483025162,0.14216157,206.37,206.31,0.03]
[1756483025163,13.59559401,206.36,206.31,0.03]
[1756483025353,38.81220134,206.37,206.31,0.03]
[1756483025671,13.59559401,206.37,206.31,0.03]
[1756483025859,13.59559401,206.35,206.31,0.03]
[1756483026056,0.06,206.39,206.34,25.21660733]
[1756483026248,0.06,206.39,206.37,25.21660733]
[1756483026454,0.06,206.39,206.36,25.21660733]
[1756483026769,0.06,206.39,206.35,25.21660733]
[1756483027071,0.06,206.39,206.36,25.21660733]
[1756483027763,14.33559401,206.39,206.34,25.21660733]
[1756483027972,39.55220134,206.39,206.33,25.21660733]
[1756483028173,0.06,206.39,206.37,25.21660733]
[1756483028380,0.06,206.39,206.38,25.21660733]
[1756483028544,0.06,206.39,206.37,25.21660733]
[1756483028748,0.06,206.39,206.34,17.30229523]
[1756483028749,0.06,206.39,206.36,25.21660733]
[1756483028972,13.59559401,206.38,206.34,30.06297739]
[1756483029353,13.59559401,206.38,206.37,25.21660733]
[1756483029551,0.06,206.39,206.37,25.21660733]
[1756483029858,0.06,206.39,206.38,25.21660733]
[1756483030061,0.06,206.39,206.37,30.06205321]
[1756483030578,0.06,206.39,206.38,25.21660733]
[1756483032271,0.06,206.39,206.38,30.06203808]
[1756483032780,0.06,206.39,206.38,30.40203808]
[1756483033647,0.06,206.39,206.38,30.06203808]
[1756483033850,0.06,206.39,206.35,30.06274253]
[1756483034100,0.06,206.39,206.38,25.21660733]
[1756483034244,0.06,206.39,206.38,30.06203808]
[1756483035064,0.06,206.39,206.38,30.40203808]
[1756483035661,0.06,206.39,206.38,4.84543075]
[1756483035853,0.06,206.39,206.38,30.06203808]
[1756483037375,0.06,206.39,206.38,22.12457913]
[1756483038674,0.06,206.39,206.38,4.84543075]
[1756483038858,0.06,206.39,206.38,22.12457913]
[1756483039176,0.06,206.39,206.38,4.84543075]
[1756483039377,0.06,206.39,206.38,22.12457913]
[1756483041854,0.06,206.39,206.38,22.15457913]
[1756483042376,0.06,206.39,206.38,0.03]
[1756483042580,0.06,206.39,206.38,17.30914838]
[1756483043478,0.06,206.39,206.33,24.23279913]
[1756483043479,13.59559401,206.38,206.25,13.595594]
[1756483043669,0.14216157,206.27,206.25,13.595594]
[1756483043870,35.21139788,206.26,206.25,13.595594]
[1756483044095,13.59559401,206.25,206.19,17.27914838]
[1756483044263,17.27914838,206.21,206.16,4.85060147]
[1756483044464,17.27914838,206.22,206.16,22.12974985]
[1756483044770,17.27914838,206.21,206.16,4.85060147]
[1756483045482,25.38611161,206.22,206.16,30.23671308]
[1756483045781,25.38611161,206.21,206.16,4.85060147]
[1756483045958,0.14216157,206.26,206.14,30.23718369]
[1756483046164,25.38611161,206.22,206.15,25.38611161]
[1756483046379,38.98170562,206.24,206.18,4.85013095]
[1756483046876,25.38611161,206.22,206.18,4.85013095]
[1756483047197,0.14216157,206.3,206.18,30.23624256]
[1756483047498,13.59559401,206.27,206.22,25.38611161]
[1756483047662,0.68,206.26,206.21,25.38611161]
[1756483047862,25.38611161,206.26,206.2,25.38611161]
[1756483048082,0.68,206.25,206.2,25.38611161]
[1756483048386,13.59559401,206.27,206.22,25.38611161]